Cogmind - Beta 13 @@@ ROGUE MODE // 2024.04.14 @ 21:16:47 Player: Demo Result: Destroyed by S-10 Pest with Light Assault Rifle Performance ------------- Evolutions (0) 0 Regions Visited (3) 600 Robots Destroyed (14) 70 Value Destroyed (302) 302 Prototype IDs (0) 0 Alien Tech Used (0) 0 Bonus (0) 0 TOTAL SCORE: 972 Bonus ------- None Cogmind --------- Core Integrity 0/250 Matter 300/300 Energy 56/100 System Corruption 0% Temperature Cool (0) Movement Core (300) Ox5 Location -10/Subcaves Parts ------- > --- POWER (1) -------- (None) > --- PROPULSION (2) --- (None) > --- UTILITY (2) ------ Small Storage Unit Seismic Detector > --- WEAPON (2) ------- Medium Laser Subdweller Beam Cannon > --- INVENTORY (8) ---- Decoy Drone Bay Subdweller Beam Cannon Assault Rifle Subdweller Machine Gun Multitool Flamer Peak State ------------ > --- POWER ------------ Makeshift Power Source > --- PROPULSION ------- Light Treads Wheel > --- UTILITY ---------- Disposable Heat Sink Small Storage Unit > --- WEAPON ----------- Assault Rifle Subdweller Machine Gun > --- INVENTORY -------- Wheel Wheel Seismic Detector Decoy Drone Bay Medium Laser Medium Laser Multitool [Rating: 14] Favorites ----------- Power Light Ion Engine Engine Light Ion Engine Propulsion Wheel Treads Light Treads Wheel Wheel Utility Small Storage Unit Device Seismic Detector Storage Small Storage Unit Weapon Medium Laser Energy Gun Medium Laser Energy Cannon Subdweller Beam Cannon Ballistic Gun Assault Rifle Build | -11 -10 -10 -10 ------- Run | Yrd Mat Min Sub Slots Evolved . | . . . . Power . | . . . . Propulsion . | . . . . Utility . | . . . . Weapon . | . . . . Parts Attached 19 | 8 . . 11 Power 3 | 1 . . 2 Engine 3 | 1 . . 2 Core . | . . . . Reactor . | . . . . Propulsion 4 | 2 . . 2 Treads 1 | 1 . . . Leg . | . . . . Wheel 3 | 1 . . 2 Hover . | . . . . Flight . | . . . . Utility 4 | 2 . . 2 Device 3 | 1 . . 2 Storage 1 | 1 . . . Processor . | . . . . Hackware . | . . . . Protection . | . . . . Artifact . | . . . . Weapon 8 | 3 . . 5 Energy Gun 4 | 2 . . 2 Energy Cannon 1 | . . . 1 Ballistic Gun 3 | 1 . . 2 Ballistic Cannon . | . . . . Launcher . | . . . . Special Weapon . | . . . . Impact Weapon . | . . . . Slashing Weapon . | . . . . Piercing Weapon . | . . . . Special Melee Weapon . | . . . . Unidentified Prototypes . | . . . . Parts Lost 9 | . . . 9 Power 2 | . . . 2 Propulsion 4 | . . . 4 Utility 1 | . . . 1 Weapon 2 | . . . 2 Highest Loss Streak 2 | . . . 2 To Critical Strikes . | . . . . Average Slot Usage (%) 86 | . 85 85 86 Engine 6 | . . . 8 Treads 9 | . 14 14 7 Wheel 13 | . 14 14 13 Device 13 | . 14 14 13 Storage 14 | . 14 14 14 Energy Gun 13 | . 14 14 13 Energy Cannon 1 | . . . 1 Ballistic Gun 13 | . 14 14 12 Naked Turns . | . . . . Heaviest Build 16 | 10 10 10 16 Greatest Support 20 | 10 10 10 20 Greatest Overweight (x) 4 | . . . 4 Average Overweight (x) . | . . . . Largest Inventory Capacity 8 | 8 8 8 8 Average Capacity 7 | 6 8 8 8 Most Carried 8 | 8 7 8 8 Average Carried 6 | 2 4 7 6 Final Capacity 8 | 8 8 8 8 Final Carried 8 | 4 7 8 7 Class Distribution -------------------- 93% | Mutant 6% | Scavenger-Mutant Dominant Class ---------------- Mutant | -10/Materials Mutant | -10/Mines Mutant | -10/Subcaves Resources | -11 -10 -10 -10 ----------- Run | Yrd Mat Min Sub Matter Collected 494 | 156 . 26 312 Remotely . | . . . . Salvage Created 373 | 83 . 26 264 Parts 29 | 14 . 2 13 Haulers Intercepted . | . . . . Recyclers Shooed . | . . . . Parts Field Recycled . | . . . . Retrieved Matter . | . . . . Parts Self-Destructed 2 | . . . 2 Prevented . | . . . . Kills | -11 -10 -10 -10 ------- Run | Yrd Mat Min Sub Combat Hostiles Destroyed 8 | . . . 8 Guns 6 | . . . 6 Cannons 2 | . . . 2 Classes Destroyed 4 | 1 . . 3 Tunneler 6 | 5 . 1 . Swarmer 2 | . . . 2 Artisan 1 | . . . 1 Subdweller 6 | . . . 6 Best Kill Streak 3 | 3 . 1 2 Combat Bots Only 2 | . . . 2 Max Kills in Single Turn 1 | 1 . 1 1 Gunslinging . | . . . . Exploded . | . . . . Melee . | . . . . Uniques/NPCs Destroyed . | . . . . Combat | -11 -10 -10 -10 -------- Run | Yrd Mat Min Sub Hostile Shots Fired 45 | . . . 45 Missed 13 | . . . 13 Damage Taken 936 | . 48 . 888 Core 253 | . 48 . 205 Absorbed by Shields . | . . . . Core Remaining (%) 100 | 100 . . . Volleys Fired 73 | 12 4 3 54 Largest 2 | 2 2 2 2 Hottest 130 | 70 70 70 130 Shots Fired 128 | 24 8 6 90 Gun 122 | 24 8 6 84 Cannon 6 | . . . 6 Launcher . | . . . . Special . | . . . . Kinetic 54 | 12 4 3 35 Thermal 74 | 12 4 3 55 Explosive . | . . . . Electromagnetic . | . . . . Robot Hit Streak 18 | 6 3 4 18 Robot Miss Streak 3 | 3 3 1 2 Penetration Max . | . . . . Secondary Targets 1 | . . . 1 Max Gunslinging Chain 1 | . . . 1 Shots Hit Robots 71 | 14 3 4 50 Core Hits 22 | 6 . 1 15 Critical Kills . | . . . . Critical Parts Destroyed . | . . . . Critical Strikes 5 | 1 . 1 3 Burn 5 | 1 . 1 3 Melee Attacks . | . . . . Impact . | . . . . Slashing . | . . . . Piercing . | . . . . Sneak Attacks . | . . . . Combat Hostiles . | . . . . Follow-up Attacks . | . . . . Damage Inflicted 1031 | 179 39 51 762 Guns 920 | 179 39 51 651 Cannons 111 | . . . 111 Explosions . | . . . . Melee . | . . . . Ramming . | . . . . Kinetic 484 | 104 27 14 339 Thermal 547 | 75 12 37 423 Explosive . | . . . . Electromagnetic . | . . . . Impact . | . . . . Slashing . | . . . . Piercing . | . . . . Highest Corruption . | . . . . Average Corruption . | . . . . Corruption Purged . | . . . . Corruption Blocked . | . . . . Overload Shots . | . . . . Overflow Damage . | . . . . Projectiles . | . . . . Explosions . | . . . . Melee . | . . . . Knockbacks . | . . . . Impact . | . . . . Kinetic . | . . . . Secondary . | . . . . Self-Inflicted Damage . | . . . . Shots . | . . . . Rammed . | . . . . Targets Rammed . | . . . . Kicked . | . . . . Crushed . | . . . . Highest Temperature 21 | 9 21 . 1 Average Temperature 11 | 6 16 . 1 Received Heat Transfer 42 | . . . 42 Siege Activations . | . . . . Robots Corrupted . | . . . . Combat Hostiles . | . . . . Parts Fried . | . . . . Impact Corruptions . | . . . . Robots Melted . | . . . . Combat Hostiles . | . . . . Parts Melted 2 | . . 2 . Heat Transferred 1813 | 296 37 185 1295 Parts Sabotaged . | . . . . Parts Stolen . | . . . . Parts Stripped . | . . . . Power Chain Reactions . | . . . . Alert | -11 -10 -10 -10 ------- Run | Yrd Mat Min Sub Peak Influence 68 | 25 68 31 . Initial 26 | . 16 26 . Average 25 | 12 38 26 . Maximum Alert Level . | . . . . Low Security (%) 100 | 100 100 100 . Level 1 . | . . . . Level 2 . | . . . . Level 3 . | . . . . Level 4 . | . . . . Level 5 . | . . . . High Security . | . . . . Max Security . | . . . . Squads Dispatched 1 | . 1 . . Investigation 1 | . 1 . . Extermination . | . . . . Reinforcement . | . . . . Assault . | . . . . Garrison . | . . . . Intercept . | . . . . Searches Triggered . | . . . . Construction Impeded . | . . . . Haulers Reinforced . | . . . . Active Scanning Responses . | . . . . Cargo Convoy Interrupts . | . . . . Stealth | -11 -10 -10 -10 --------- Run | Yrd Mat Min Sub Distress Signals 1 | . 1 . . Communications Jammed . | . . . . Distress Signals . | . . . . Times Spotted 17 | . 2 . 15 Peak Tracking Total 5 | . 4 . 5 Tactical Retreats 4 | . 1 . 3 Traps | -11 -10 -10 -10 ------- Run | Yrd Mat Min Sub Traps Triggered 7 | . 1 . 6 Indirectly . | . . . . Trap Hack Attempts . | . . . . Triggered . | . . . . Disarmed . | . . . . Reprogrammed . | . . . . Reused . | . . . . Traps Extracted . | . . . . Installed . | . . . . Triggered . | . . . . Machines | -11 -10 -10 -10 ---------- Run | Yrd Mat Min Sub Machines Disabled . | . . . . Max in Single Turn . | . . . . Machines Repaired . | . . . . Machines Dismantled . | . . . . Machines Sabotaged . | . . . . Overloaded Fab Kills . | . . . . Hacking | -11 -10 -10 -10 --------- Run | Yrd Mat Min Sub Machines Accessed 3 | . 2 1 . Terminals 2 | . 2 . . Fabricators . | . . . . Repair Stations . | . . . . Recycling Units . | . . . . Scanalyzers . | . . . . Garrison Access . | . . . . Total Hacks 5 | . 4 1 . Successful 2 | . 1 1 . Failed 3 | . 3 . . Catastrophic 1 | . 1 . . Database Lockouts . | . . . . Manual . | . . . . Terminals 4 | . 4 . . Fabricators . | . . . . Repair Stations . | . . . . Recycling Units . | . . . . Scanalyzers . | . . . . Garrison Access . | . . . . Terminal Hacks 2 | . 1 1 . Open Door 1 | . . 1 . Branch Access Points 1 | . 1 . . Fabricator Hacks . | . . . . Repair Station Hacks . | . . . . Recycling Unit Hacks . | . . . . Scanalyzer . | . . . . Garrison Access Hacks . | . . . . Unauthorized Hacks . | . . . . Terminals . | . . . . Fabricators . | . . . . Repair Stations . | . . . . Recycling Units . | . . . . Scanalyzers . | . . . . Garrison Access . | . . . . Data Cores Recovered . | . . . . Used . | . . . . Hacking Detections 2 | . 2 . . Full Trace Events 1 | . 1 . . Feedback Events . | . . . . Feedback Blocked . | . . . . Robot Schematics Acquired . | . . . . Robots Built . | . . . . Authchips . | . . . . Time . | . . . . Total Robot Build Rating . | . . . . Part Schematics Acquired . | . . . . Parts Built . | . . . . Authchips . | . . . . Time . | . . . . Total Part Build Rating . | . . . . Parts Repaired . | . . . . Time . | . . . . Parts Recycled . | . . . . Recycled Matter . | . . . . Retrieved Matter . | . . . . Retrieved Components . | . . . . Parts Scanalyzed . | . . . . Part Schematics Acquired . | . . . . Parts Damaged . | . . . . Bothacking | -11 -10 -10 -10 ------------ Run | Yrd Mat Min Sub Used RIF Installer . | . . . . Robots Hacked . | . . . . Non-combat . | . . . . Combat . | . . . . Robot Hacks Applied . | . . . . Relay Couplers Released . | . . . . Fabnet Peak Effective % . | . . . . Robots Rewired . | . . . . Allies Hacked . | . . . . Hacks Repelled . | . . . . Allies | -11 -10 -10 -10 -------- Run | Yrd Mat Min Sub Total Allies . | . . . . Largest Group . | . . . . Highest-Rated Group . | . . . . Highest-Rated Ally . | . . . . Total Orders . | . . . . Ally Attacks . | . . . . Total Damage . | . . . . Kills . | . . . . Allies Corrupted . | . . . . Allies Melted . | . . . . Intel | -11 -10 -10 -10 ------- Run | Yrd Mat Min Sub Robot Analysis Total . | . . . . Derelict Logs Recovered 1 | . . . 1 Drone Launches . | . . . . Drone Recoveries . | . . . . Exploration | -11 -10 -10 -10 ------------- Run | Yrd Mat Min Sub Turns Passed 1119 | 117 112 143 747 Spaces Moved 824 | 54 120 64 586 Core 3 | 2 . . 1 Treads 2 | . . . 2 Legs . | . . . . Wheels 819 | 52 120 64 583 Hover . | . . . . Flight . | . . . . Fastest Speed 50 | 50 80 80 80 Average Speed 89 | 78 80 80 93 Slowest Speed 250 | 80 80 80 250 Overloaded Moves . | . . . . Propulsion Burnouts . | . . . . Robots Hopped . | . . . . Cave-ins Triggered . | . . . . Exploration Rate (%) 24 | 3 35 16 42 Regions Visited 3 Branch Regions 2 Pre-discovered Areas 1 | . . . 1 Known Exits Taken 1 | . 1 . . Unknown Exits Taken 2 | 1 . 1 . Scrap Searched . | . . . . Spaces Dug . | . . . . Terrain Destroyed 2 | . . . 2 Melee . | . . . . Projectile 2 | . . . 2 AOE . | . . . . Terrain Rammed . | . . . . Walls Destroyed . | . . . . Machines Disabled . | . . . . Actions | -11 -10 -10 -10 --------- Run | Yrd Mat Min Sub Total 1068 | 104 127 150 687 Wait 121 | 15 1 82 23 Move 821 | 53 119 63 586 Hop . | . . . . Pick Up 21 | 9 3 1 8 Fast Attach 10 | 7 . . 3 Attach 6 | 1 . . 5 Detach 1 | 1 . . . Swap 3 | . . . 3 Drop 12 | 6 . 1 5 Fire 73 | 12 4 3 54 Melee . | . . . . Ram . | . . . . Kick . | . . . . Crush . | . . . . Escape Stasis . | . . . . Rewire . | . . . . Trap . | . . . . Miscellaneous . | . . . . Route ------- -11/Scrapyard -10/Materials (discovered 2 exits: *Min x2) -10/Mines -10/Subcaves (discovered 2 exits: [*Mat] / [*Rec]) History --------- Turn | Location | Event 11 | -11/Scrapyard | Discovered new exit (range 15) 118 | -11/Scrapyard | Entered Materials 132 | -10/Materials | Identified exit to Mines 230 | -10/Materials | Entered Mines 232 | -10/Mines | Found the Drone Emporium 236 | -10/Mines | Found Prototype Device 313 | -10/Mines | Build established: Mutant 359 | -10/Mines | Discovered new exit (range 5) 373 | -10/Mines | Entered Subcaves 375 | -10/Subcaves | Learned Materials security intel 440 | -10/Subcaves | Learned location of Zion (-6) 440 | -10/Subcaves | Met a Zionite searching for "candidates" 454 | -10/Subcaves | Discovered new exit (range 14) 472 | -10/Subcaves | Shifting Twisted Machinery released Multitool 473 | -10/Subcaves | Shifting Twisted Machinery released Mak. Flight Unit 610 | -10/Subcaves | Core integrity fell below 50% 739 | -10/Subcaves | A swath of the cavern ceiling suddenly collapsed 839 | -10/Subcaves | Ambushed by Subdwellers from Twisted Machinery 897 | -10/Subcaves | Shifting Twisted Machinery released Flamer 898 | -10/Subcaves | Shifting Twisted Machinery released Sub. Beam Cannon 1039 | -10/Subcaves | Ambushed by Subdwellers from Twisted Machinery 1041 | -10/Subcaves | Core integrity fell below 20% 1112 | -10/Subcaves | Discovered new exit (range 14) 1120 | -10/Subcaves | Destroyed by S-10 Pest with Light Assault Rifle Last Messages --------------- 01051_ ON-B2E(R) destroyed. 01060_ IJ-RB0(R) destroyed. 01064_ Acquired 92 matter. 01066_ Subatomizers dissect the Sub. Beam Cannon. 01066_ Acquired Sub. Beam Cannon. 01068_ Acquired Sub. Machine Gun. 01079_ Subatomizers dissect the Disposable Heat Sink. 01088_ Acquired Scrap Shield Fragment. 01090_ Subatomizers dissect the Disposable Heat Sink. 01090_ Dropped Scrap Shield Fragment. 01090_ Acquired Scrap Shield Fragment. 01094_ Dropped Scrap Shield Fragment. 01112_ Acquired 34 matter. 01112_ EXIT=FOUND 01116_ S-10 Pest destroyed. 01119_ Wheel destroyed. 01119_ S-10 Pest destroyed. Map ----- +----------------------------------------------------+ | ?????????????????????????????????????????????????? | | ?????????????????????????????????????????????????? | | ?????????????????????????????????????????????????? | | ?????????????????????????????????????????????????? | | ?????????????????????????????????????????????????? | | ?????????????????????????????????????????????????? | | ?????????????????????????????????????????????????? | | ?????????????????????????????????????????????????? | | ?????????????????????????????????????????????????? | | ?????????????????????????????????????????????????? | | ?????????????????????????????????????????????????? | | ?????????????????????????????????????????????????? | | ?????????????????????????????????????????????????? | | "????????????????????????????????????????????????? | | #????????????????????????????????????????????????? | | ?????????????????????????????????????????????????? | | ?????????????????????????????????????????????????? | | ????????????????????????####?????????????????????? | | ??????????????????????###""##????????????????????? | | ??????????????????????"""" #??##????????????????? | | ????????????????????? "" ### #????????????????? | | ?????????????????? """"" ## ##???????????????? | | ??????????????????#"""""" ?#"""#???????????????? | | ???????????"?????##" "" #?""""#???????????????? | | ??????????#" #" """"" ###"""##??????????????? | | ???????????"" """@ ## "" #??????????????? | | ?????????#< =&s"" ""#???????????????? | | ???????????"" % #;;"%"" ""#???????????????? | | ??????????#" ##??#;### ## ""#???????????????? | | ???????????? ??????## #?# "# "##???????????????? | | ????????????????????# ### ##????????????????? | | ????????????????????# #" "#????????????????? | | ???????????######??## ##" "#????????????????? | | ??????????## #### ##### #????????????????? | | ??????????# ## ### #????????????????? | | ???????????# ## #????????????????? | | ???????????# #????????????????? | | ???????????# ####### !! #????????????????? | | ???????????###??#### &### #????????????????? | | ???????####?????# &#?# #????????????????? | | ??###?## ##????# ## ##????????????????? | | ?## ### ##???# ####?????????????????? | | ?# ###?## ##???????????????????? | | ?## ##?# ###?????????????????? | | ??## #### ##????????????????? | | ???## ## #### #????????????????? | | ?######## #?### #????????????????? | | ?# ## ### #???# ##????????????????? | | ## ##### #???## ##?????????????????? | | #????# ## #??????????????????? | +----------------------------------------------------+ Best States ------------- Heat Dissipation 25 Coolant Potential 50 Energy Generation 15 Energy Capacity 170 Matter Stores 300 Matter Capacity 300 Sight Range 16 Terrain Scan Density 10 Evasion (%) 44 Recoil Reduction 1 Item Schematics ----------------- None Robot Schematics ------------------ None Fabricated ------------ Nothing Alien Tech Used ----------------- None Achievements -------------- None Challenges ------------ None Game ------ Seed OpticalCoilThruster Manual? 0 Play Time 00:12:55 Cumulative 89.9 hours Start 2024.04.14 @ 21:08:17 End 2024.04.14 @ 21:16:47 Sessions 1 Manual Loads 0 Difficulty Rogue Special Mode None Game No. 103 Rogue 103 Adventurer 0 Explorer 0 Win Type - Total 1 Types 1/0/0/0/0/0/0/0/0 Lore% 44 Gallery% 65 Achievement% 50 Wizard Run 0 Options --------- Layout 1 ASCII 0 Keyboard 0 Movement Numpad Keybinds 0 Fullscreen 1 Font 24/Smallcaps Map View 50x35 Zoom Use 0% Tactical HUD 1 Map Filters NONE Filters NONE Steam 1 RUN: a197ac8c-6ed5-4e33-a21f-cd2ac147d592